Cogmind - Beta 16 @@@ ROGUE MODE // 2025.10.26 @ 21:15:28 Player: AL Result: Destroyed by G-34 Mercenary with Small Laser Performance ------------- Evolutions (0) 0 Regions Visited (4) 800 Robots Destroyed (20) 100 Value Destroyed (401) 401 Prototype IDs (23) 460 Alien Tech Used (0) 0 Bonus (300) 300 TOTAL SCORE: 2061 Bonus ------- Aligned with FarCom 300 Cogmind --------- Core Integrity 0/250 Matter 295/300 Energy 265/265 System Corruption 3% Temperature Warning (319) Movement Core (550) Ox10 Location -9/Mines Parts ------- > --- POWER (1) -------- Reinforced Ion Engine > --- PROPULSION (2) --- (None) > --- UTILITY (2) ------ Weight Redist. System > --- WEAPON (2) ------- Firepult > --- INVENTORY (5) ---- Seismic Detector Peak State ------------ > --- POWER ------------ Reinforced Ion Engine > --- PROPULSION ------- Aluminum Leg > --- UTILITY ---------- Weight Redist. System Hardened Medium Armor Plating > --- WEAPON ----------- Firepult > --- INVENTORY -------- Seismic Detector [Rating: 28] Favorites ----------- Power Light Ion Engine Engine Light Ion Engine Power Core Light Nuclear Core Propulsion Aluminum Leg Leg Aluminum Leg Utility Small Storage Unit Device Weight Redist. System Storage Small Storage Unit Processor Signal Interpreter Protection Hardened Medium Armor Plating Weapon Light Assault Rifle Energy Cannon Firepult Ballistic Gun Light Assault Rifle Build | -11 -10 -10 -10 -9 ------- Run | Yrd Mat Min Exi Min Slots Evolved . | . . . . . Power . | . . . . . Propulsion . | . . . . . Utility . | . . . . . Weapon . | . . . . . Parts Attached 17 | 6 5 2 1 3 Power 4 | 1 1 . 1 1 Engine 3 | 1 . . 1 1 Core 1 | . 1 . . . Reactor . | . . . . . Propulsion 4 | 2 2 . . . Treads . | . . . . . Leg 4 | 2 2 . . . Wheel . | . . . . . Hover . | . . . . . Flight . | . . . . . Utility 4 | 1 1 1 . 1 Device 1 | . . . . 1 Storage 1 | 1 . . . . Processor 1 | . 1 . . . Hackware . | . . . . . Protection 1 | . . 1 . . Artifact . | . . . . . Weapon 5 | 2 1 1 . 1 Energy Gun . | . . . . . Energy Cannon 1 | . . . . 1 Ballistic Gun 4 | 2 1 1 . . Ballistic Cannon . | . . . . . Launcher . | . . . . . Special Weapon . | . . . . . Impact Weapon . | . . . . . Slashing Weapon . | . . . . . Piercing Weapon . | . . . . . Special Melee Weapon . | . . . . . Unidentified Prototypes . | . . . . . Parts Lost 7 | . 1 1 . 5 Power 1 | . . 1 . . Propulsion 2 | . . . . 2 Utility 1 | . . . . 1 Weapon 3 | . 1 . . 2 Highest Loss Streak 5 | . 1 1 . 5 To Critical Strikes 1 | . 1 . . . Average Backups 2 | . 2 3 2 2 Power . | . 1 1 . . Propulsion . | . . . . . Utility 1 | . . 2 2 1 Weapon . | . . . . . Tool/Special . | . . . . . Unused Backups 1 | . . . . 1 Power . | . . . . . Propulsion . | . . . . . Utility 1 | . . . . 1 Weapon . | . . . . . Tool/Special . | . . . . . Average Slot Usage (%) 98 | . 98 98 100 92 Engine 11 | . 8 . 14 14 Core 2 | . 5 12 . . Leg 27 | . 28 28 28 24 Device 1 | . . . . 9 Storage 12 | . 14 14 14 4 Processor 3 | . 12 1 . . Protection 9 | . . 12 14 11 Ballistic Gun 27 | . 27 28 28 23 Peak Build Rating 28 | 6 9 11 11 28 Average Rating 10 | 4 7 10 10 14 On Entrance 6 | . 6 9 8 11 Avg Prop Armor Cover (%) . | . . . . . Naked Turns . | . . . . . Heaviest Build 32 | 14 14 21 18 32 Greatest Support 26 | 20 20 20 20 26 Greatest Overweight (x) 10 | . . 1 . 10 Average Overweight (x) . | . . . . . Largest Inventory Capacity 8 | 8 8 8 8 8 Average Capacity 7 | 6 8 8 8 5 Most Carried 5 | 2 4 4 4 5 Average Carried 2 | . 2 3 3 3 Final Capacity 8 | 8 8 8 8 5 Final Carried 4 | 1 3 3 4 1 Class Distribution -------------------- 74% | Scavenger-Mutant 25% | Mutant Dominant Class ---------------- Mutant | -10/Materials Scavenger-Mutant | -10/Mines Scavenger-Mutant | -10/Exiles Scavenger-Mutant | -9/Mines Resources | -11 -10 -10 -10 -9 ----------- Run | Yrd Mat Min Exi Min Matter Collected 643 | 190 316 28 . 109 Remotely . | . . . . . Salvage Created 586 | . 364 48 . 174 Parts 38 | . 28 4 . 6 Haulers Intercepted 1 | . 1 . . . Recyclers Shooed 1 | . 1 . . . Parts Field Recycled . | . . . . . Retrieved Matter . | . . . . . Parts Self-Destructed . | . . . . . Prevented . | . . . . . Parts Restored . | . . . . . Kills | -11 -10 -10 -10 -9 ------- Run | Yrd Mat Min Exi Min Combat Hostiles Destroyed 17 | . 10 3 . 4 Guns 16 | . 10 3 . 3 AOE 1 | . . . . 1 Classes Destroyed 7 | . 5 1 . 1 Worker 2 | . 2 . . . Tunneler 1 | . 1 . . . Hauler 1 | . 1 . . . Swarmer 8 | . 6 2 . . Grunt 7 | . 4 . . 3 Brawler 1 | . . . . 1 Assembled 1 | . . 1 . . Best Kill Streak 7 | . 7 2 . 2 Combat Bots Only 5 | . 5 2 . 2 Max Kills in Single Turn 2 | . 2 2 . 1 Gunslinging 1 | . . 1 . . Exploded 1 | . . . . 1 Melee . | . . . . . Uniques/NPCs Destroyed . | . . . . . Combat | -11 -10 -10 -10 -9 -------- Run | Yrd Mat Min Exi Min Hostile Shots Fired 132 | . 67 19 . 46 Missed 36 | . 19 5 . 12 Hits 96 | . 48 14 . 34 Melee 11 | . . 9 . 2 Projectile 85 | . 48 5 . 32 Critical Strikes 1 | . 1 . . . Damage Taken 1230 | . 452 323 . 455 Core 255 | . 93 79 . 83 Absorbed by Shields . | . . . . . Core Remaining (%) 100 | 100 . . . . Volleys Fired 64 | . 37 6 . 21 Largest 2 | . 2 2 . 2 Hottest 250 | . 40 40 . 250 Shots Fired 119 | . 67 12 . 40 Gun 117 | . 67 12 . 38 Cannon 2 | . . . . 2 Launcher . | . . . . . Special . | . . . . . Kinetic 117 | . 67 12 . 38 Thermal 2 | . . . . 2 Explosive . | . . . . . Electromagnetic . | . . . . . Robot Hit Streak 8 | . 8 6 . 7 Robot Miss Streak 3 | . 3 2 . 2 Penetration Max . | . . . . . Secondary Targets 2 | . . 2 . . Max Gunslinging Chain 1 | . . 1 . . Shots Hit Robots 74 | . 36 8 . 30 Core Hits 41 | . 23 6 . 12 Critical Kills . | . . . . . Critical Parts Destroyed 1 | . . . . 1 Critical Strikes 2 | . . . . 2 Destroy 2 | . . . . 2 Melee Attacks . | . . . . . Impact . | . . . . . Slashing . | . . . . . Piercing . | . . . . . Sneak Attacks . | . . . . . Combat Hostiles . | . . . . . Follow-up Attacks . | . . . . . Damage Inflicted 1219 | . 760 68 . 391 Guns 798 | . 508 67 . 223 Cannons 31 | . . . . 31 Explosions 389 | . 252 . . 137 Melee . | . . . . . Ramming 1 | . . 1 . . Kinetic 798 | . 508 67 . 223 Thermal 168 | . . . . 168 Explosive . | . . . . . Electromagnetic 252 | . 252 . . . Impact . | . . . . . Slashing . | . . . . . Piercing . | . . . . . Highest Corruption 3 | . . 3 3 3 Average Corruption 3 | . . 3 3 3 Corruption Purged . | . . . . . Corruption Blocked . | . . . . . Effects 23 | . . . 16 7 Message Errors 2 | . . . 2 . Matter Fused 8 | . . . 6 2 Heat Flow Errors 5 | . . . 3 2 Energy Discharges 1 | . . . 1 . Data Loss (minor) 3 | . . . 2 1 Data Loss (major) 3 | . . . 1 2 Alerts 1 | . . . 1 . Overload Shots . | . . . . . Overflow Damage . | . . . . . Projectiles . | . . . . . Explosions . | . . . . . Melee . | . . . . . Knockbacks . | . . . . . Impact . | . . . . . Kinetic . | . . . . . Secondary . | . . . . . Self-Inflicted Damage 21 | . . . . 21 Shots 2 | . . . . 2 Rammed . | . . . . . Targets Rammed 1 | . . 1 . . Kicked 1 | . . 1 . . Crushed . | . . . . . Highest Temperature 684 | . 2 23 271 684 Average Temperature 150 | . 2 9 120 190 Received Heat Transfer 348 | . 126 . . 222 Effects 8 | . . . . 8 Shutdowns 2 | . . . . 2 Energy Bleed 2 | . . . . 2 Short Circuit 2 | . . . . 2 Damage (minor) 1 | . . . . 1 Damage (major) 1 | . . . . 1 Siege Activations . | . . . . . Martial Activations . | . . . . . Shielding Activations . | . . . . . Robots Disrupted . | . . . . . Combat Hostiles . | . . . . . Robots Corrupted . | . . . . . Combat Hostiles . | . . . . . Parts Fried . | . . . . . Impact Corruptions . | . . . . . Robots Melted . | . . . . . Combat Hostiles . | . . . . . Parts Melted . | . . . . . Heat Transferred 720 | . . . . 720 Parts Sabotaged . | . . . . . Parts Stolen . | . . . . . Parts Stripped . | . . . . . Power Chain Reactions . | . . . . . Alert | -11 -10 -10 -10 -9 ------- Run | Yrd Mat Min Exi Min Maximum Alert Level . | . . . . . Low Security (%) 100 | 100 100 100 . 100 Level 1 . | . . . . . Level 2 . | . . . . . Level 3 . | . . . . . Level 4 . | . . . . . Level 5 . | . . . . . High Security . | . . . . . Max Security . | . . . . . Peak Influence 116 | . 116 50 . 50 Initial 30 | . . 30 . . Average 32 | . 53 15 . 14 Influence Increases 449 | . 287 50 . 112 Destroy 0b10 Robot/C 320 | . 200 40 . 80 Destroy 0b10 Robot/NC 20 | . 20 . . . Destroy Leader 62 | . 32 10 . 20 Successful Hack 4 | . 4 . . . Disable Machine 15 | . 15 . . . Destroy Structure 13 | . 1 . . 12 Lose Combat Pursuer 15 | . 15 . . . Influence Decreases 434 | . 210 127 . 97 Entered New Map 47 | . . 47 . . Time Decay 360 | . 200 70 . 90 Lost Part 27 | . 10 10 . 7 Squads Dispatched . | . . . . . Investigation . | . . . . . Extermination . | . . . . . Reinforcement . | . . . . . Assault . | . . . . . Garrison . | . . . . . Intercept . | . . . . . Searches Triggered . | . . . . . Construction Impeded . | . . . . . Haulers Reinforced . | . . . . . Active Scanning Responses . | . . . . . Cargo Convoy Interrupts . | . . . . . Stealth | -11 -10 -10 -10 -9 --------- Run | Yrd Mat Min Exi Min Distress Signals 1 | . 1 . . . Communications Jammed . | . . . . . Distress Signals . | . . . . . Times Spotted 24 | . 13 6 . 5 Peak Tracking Total 4 | . 4 4 . 3 Tactical Retreats 1 | . 1 . . . Traps | -11 -10 -10 -10 -9 ------- Run | Yrd Mat Min Exi Min Traps Triggered . | . . . . . Indirectly . | . . . . . Trap Hack Attempts . | . . . . . Triggered . | . . . . . Disarmed . | . . . . . Reprogrammed . | . . . . . Reused . | . . . . . Traps Extracted . | . . . . . Installed . | . . . . . Triggered . | . . . . . Machines | -11 -10 -10 -10 -9 ---------- Run | Yrd Mat Min Exi Min Machines Disabled 1 | . 1 . . . Max in Single Turn 1 | . 1 . . . Machines Repaired . | . . . . . Machines Dismantled . | . . . . . Machines Sabotaged . | . . . . . Overloaded Fab Kills . | . . . . . Hacking | -11 -10 -10 -10 -9 --------- Run | Yrd Mat Min Exi Min Machines Accessed 9 | . 3 1 5 . Terminals 3 | . 3 . . . Fabricators . | . . . . . Repair Stations . | . . . . . Recycling Units . | . . . . . Scanalyzers . | . . . . . Garrison Access . | . . . . . Total Hacks 58 | . 7 1 50 . Successful 53 | . 2 1 50 . Failed 5 | . 5 . . . Catastrophic 3 | . 3 . . . Database Lockouts . | . . . . . Manual 8 | . 6 . 2 . Terminals 7 | . 7 . . . Fabricators . | . . . . . Repair Stations . | . . . . . Recycling Units . | . . . . . Scanalyzers . | . . . . . Garrison Access . | . . . . . Terminal Hacks 53 | . 2 1 50 . Record 50 | . 1 . 49 . Open Door 1 | . . 1 . . Emergency Access Points 1 | . 1 . . . Proto ID Catalog 1 | . . . 1 . Fabricator Hacks . | . . . . . Repair Station Hacks . | . . . . . Recycling Unit Hacks . | . . . . . Scanalyzer . | . . . . . Garrison Access Hacks . | . . . . . Unauthorized Hacks . | . . . . . Terminals . | . . . . . Fabricators . | . . . . . Repair Stations . | . . . . . Recycling Units . | . . . . . Scanalyzers . | . . . . . Garrison Access . | . . . . . Data Cores Recovered . | . . . . . Used . | . . . . . Hacking Detections 3 | . 3 . . . Full Trace Events . | . . . . . Feedback Events . | . . . . . Feedback Blocked . | . . . . . Robot Schematics Acquired . | . . . . . Robots Built . | . . . . . Authchips . | . . . . . Time . | . . . . . Total Robot Build Rating . | . . . . . Part Schematics Acquired . | . . . . . Parts Built . | . . . . . Authchips . | . . . . . Time . | . . . . . Total Part Build Rating . | . . . . . Part Studies Acquired . | . . . . . Parts Repaired . | . . . . . Time . | . . . . . Parts Recycled . | . . . . . Recycled Matter . | . . . . . Retrieved Matter . | . . . . . Retrieved Components . | . . . . . Parts Scanalyzed . | . . . . . Part Schematics Acquired . | . . . . . Parts Damaged . | . . . . . Bothacking | -11 -10 -10 -10 -9 ------------ Run | Yrd Mat Min Exi Min Used RIF Installer . | . . . . . Robots Hacked . | . . . . . Non-combat . | . . . . . Combat . | . . . . . Robot Hacks Applied . | . . . . . Relay Couplers Released . | . . . . . Fabnet Peak Effective % . | . . . . . Robots Rewired . | . . . . . Allies Hacked . | . . . . . Hacks Repelled . | . . . . . Allies | -11 -10 -10 -10 -9 -------- Run | Yrd Mat Min Exi Min Total Allies . | . . . . . Largest Group . | . . . . . Highest-Rated Group . | . . . . . Highest-Rated Ally . | . . . . . Total Orders . | . . . . . Ally Attacks . | . . . . . Total Damage . | . . . . . Kills . | . . . . . Allies Corrupted . | . . . . . Allies Melted . | . . . . . Intel | -11 -10 -10 -10 -9 ------- Run | Yrd Mat Min Exi Min Active Infowar (turns) . | . . . . . Robot Analysis Total . | . . . . . Derelict Logs Recovered 1 | . . . . 1 Drone Launches . | . . . . . Drone Recoveries . | . . . . . Exploration | -11 -10 -10 -10 -9 ------------- Run | Yrd Mat Min Exi Min Turns Passed 2004 | 62 497 210 974 261 Spaces Moved 1403 | 43 300 124 804 132 Core 15 | 9 . . . 6 Treads . | . . . . . Legs 1388 | 34 300 124 804 126 Wheels . | . . . . . Hover . | . . . . . Flight . | . . . . . Fastest Speed 50 | 50 120 120 120 120 Average Speed 123 | 105 120 147 120 137 Slowest Speed 550 | 120 120 190 120 550 Overloaded Moves . | . . . . . Propulsion Burnouts . | . . . . . Robots Hopped . | . . . . . Potential Cave-ins . | . . . . . Cave-ins Triggered . | . . . . . Exploration Rate (%) 36 | 3 43 21 94 21 Regions Visited 4 Branch Regions 3 Pre-discovered Areas 1 | . . . 1 . Known Exits Taken 1 | . 1 . . . Unknown Exits Taken 3 | 1 . 1 1 . Scrap Searched . | . . . . . Spaces Dug . | . . . . . Terrain Destroyed 13 | . . . . 13 Melee . | . . . . . Projectile 1 | . . . . 1 AOE 12 | . . . . 12 Terrain Rammed . | . . . . . Walls Destroyed . | . . . . . Machines Disabled . | . . . . . Actions | -11 -10 -10 -10 -9 --------- Run | Yrd Mat Min Exi Min Total 1566 | 59 370 141 813 183 Wait 60 | 4 19 5 8 24 Move 1399 | 42 299 123 803 132 Hop . | . . . . . Pick Up 18 | 7 7 2 1 1 Fast Attach . | . . . . . Attach 12 | 6 2 2 1 1 Detach . | . . . . . Swap 5 | . 3 . . 2 Drop 7 | . 3 2 . 2 Fire 64 | . 37 6 . 21 Melee . | . . . . . Ram . | . . . . . Kick 1 | . . 1 . . Crush . | . . . . . Escape Stasis . | . . . . . Rewire . | . . . . . Trap . | . . . . . Miscellaneous . | . . . . . Route ------- -11/Scrapyard -10/Materials -10/Mines -10/Exiles (discovered 2 exits: [*Min x2]) -9/Mines History --------- Turn | Location | Event 5 | -11/Scrapyard | Discovered new exit (range 14) 63 | -11/Scrapyard | Entered Materials 231 | -10/Materials | Discovered new exit (range 13) 267 | -10/Materials | Identified exit to Mines 302 | -10/Materials | Build established: Mutant 560 | -10/Materials | Entered Mines 567 | -10/Mines | Met a Derelict who couldn't figure out how to use a Trap Extractor 696 | -10/Mines | Assembled infested the area 729 | -10/Mines | Deemed a non-threat by the Exiles lab entrance 729 | -10/Mines | Discovered new exit (range 5) 752 | -10/Mines | Core integrity fell below 50% 770 | -10/Mines | Entered Exiles 791 | -10/Exiles | Build established: Scavenger-Mutant 796 | -10/Exiles | Discovered new exit (range 14) 828 | -10/Exiles | Met 8R-AWN 855 | -10/Exiles | Met EX-HEX 957 | -10/Exiles | Met EX-BIN 978 | -10/Exiles | Aligned with FarCom system 980 | -10/Exiles | Given EX-Vault access code 1020 | -10/Exiles | Opened EX-Vault 1029 | -10/Exiles | Found Firepult 1092 | -10/Exiles | Warned to stay clear of 0b10 Research branches 1139 | -10/Exiles | Met EX-DEC 1186 | -10/Exiles | Learned location of Zion (-7) 1245 | -10/Exiles | Discovered new exit (range 15) 1357 | -10/Exiles | Visited The Gauntlet 1744 | -10/Exiles | Left Exiles lab with Firepult 1744 | -10/Exiles | Entered Mines 1950 | -9/Mines | Core integrity fell below 20% 2005 | -9/Mines | Destroyed by G-34 Mercenary with Small Laser Last Messages --------------- 01987_ System corrupted: Heat flow error (+232). 01987_ G-34 Mercenary overheating. 01988_ Weight Redist. System broken. 01988_ Overheating: Short circuit. 01988_ K-01 Serf collects debris. 01990_ Overheating: Broken Firepult damaged (-215). 01990_ G-34 Mercenary overheating. 01991_ K-01 Serf collects debris. 01994_ G-34 Mercenary overheating. 01995_ K-01 Serf collects debris. 01995_ G-34 Mercenary overheating. 01996_ Power failure, Rnf. Ion Engine shutdown. 01996_ Overheating: Energy bleed (-38). 01996_ K-01 Serf collects debris. 01998_ G-34 Mercenary overheating. 01999_ K-01 Serf collects debris. 02001_ G-34 Mercenary heat short circuits Aluminum Leg. 02002_ K-01 Serf collects debris. 02003_ System corrupted: Matter fused (-5). 02004_ Overheating: Broken Firepult damaged (-60). Map ----- +----------------------------------------------------+ | ????????????????????????????????????????????????? | | ????????????????????????????????????????????????? | | ????????????????????????????????????????????????? | | ????????????????????# ###########???????????????? | | ????????????????????# #???????????????? | | ????????????????????####### ### #???????????????? | | ??????????????????????????# ### ############????? | | ??????????????????????????# ## % #????? | | ??????????????????????????# ## """ """ #????? | | ????????????????????#??#### ## """ """ #????? | | ??????????????????# #"## ## """ """ #????? | | ?????????????????## "# ##### #????? | | ?????????????????# ## #???# """% """ #????? | | ?????????????????# ## #???# """ ! """ #????? | | ????????????????## #?# #???# """ """ #????? | | ??????????????### ### #???# #????? | | ?????????????## ## #???###############????? | | ?????????????# #??????????????????????? | | ?????????????# ####??????????????????????? | | ????????????## ##?????????????????????????? | | ???????????## #####??????????????????????????? | | ???????????# ##??????????????????????????????? | | ???????????# ""#??????????????????????????????? | | ??????????## %########?????????????????????????? | | ??????????# ; =g ;; #######???????????????????? | | ????????????# @ #???????????????????? | | ????????????## #### #???????????????????? | | ????????????## ##??# ###### #???????????? | | ???????????## ##??# #?????????? | | ??????????## ##?# ?????? | | ?????????## ######### ?????? | | ???????### #?????????? ??????? | | ???????# ### #????????????? ??????? | | ??????# #####?## #????????????????????? | | ??????# ##??????# #????????????????????? | | ??????## #???????# ??????????????????? | | ???????## ##?Y????Y## ????????????????? | | ????????# #??????????######## #????????????????? | | ????????# #???????????????????#????????????????? | | ????????# #??????????????????gg????????????????? | | ????????# ????????????????????????????????????? | | ????????# ??????????????????g?????????????????? | | ????????####????????????????????????????????????? | | ????????????????????????????????????????????????? | | ????????????????????????????????????????????????? | | ????????????????????????????????????????????????? | | ????????????????????????????????????????????????? | | ????????????????????????????????????????????????? | | ????????????????????????????????????????????????? | | ????????????????????????????????????????????????? | +----------------------------------------------------+ Best States ------------- Heat Dissipation 25 Energy Generation 14 Energy Capacity 265 Matter Stores 300 Matter Capacity 300 Sight Range 16 Terrain Scan Density 10 Additional Mass Support 6 Armor Coverage 225 Evasion (%) 55 Item Schematics ----------------- None Robot Schematics ------------------ None Fabricated ------------ Nothing Repaired ---------- Nothing Studied --------- None Alien Tech Used ----------------- None Achievements -------------- I Survived The Infestation Sixth Sense Challenges ------------ None Game ------ Seed ImprinterSuperdenseFrame Manual? 0 Play Time 00:33:57 Cumulative 7.9 hours Start 2025.10.26 @ 20:34:11 End 2025.10.26 @ 21:15:28 Sessions 1 Manual Loads 0 Difficulty Rogue Special Mode None Game No. 13 Rogue 13 Adventurer 0 Explorer 0 Win Type - Total 0 Types 0/0/0/0/0/0/0/0/0/0 Lore% 7 Gallery% 12 Achievement% 11 Wizard Run 0 Options --------- Layout 0 ASCII 0 Keyboard 0 Movement Arrows Keybinds 0 Fullscreen 1 Font 24/Smallcaps Map View 38x25 Zoom Use 99% Tactical HUD 1 Map Filters NONE Filters NONE Steam 1 RUN: 0535de9f-0f1d-489c-ba3b-303880a31bbd